[Event "Titled Tuesday Blitz February 07 Early 2023"]
[White "Danielyan, Vahe"]
[Black "Goncalves, Davi Sulzbacher"]
[WhiteFideId "13304828"]
[BlackFideId "2154510"]
[WhiteElo "2346"]
[BlackElo "2282"]
[Result "1-0"]
[Round "10"]
[TimeControl "180+2"]
[Date "2023.02.07"]
[WhiteClock "0:00:20"]
[BlackClock "0:00:21"]

1. d4 {[%clk 0:03:00]}  Nf6 {[%clk 0:02:56]} 2. c4 {[%clk 0:02:59]}  e6 {[%clk 0:02:56]} 3. Nf3 {[%clk 0:02:56]}  b6 {[%clk 0:02:56]} 4. g3 {[%clk 0:02:54]}  Ba6 {[%clk 0:02:55]} 5. Qc2 {[%clk 0:02:53]}  Bb4+ {[%clk 0:02:54]} 6. Nbd2 {[%clk 0:02:51]}  c6 {[%clk 0:02:47]} 7. Bg2 {[%clk 0:02:49]}  d5 {[%clk 0:02:44]} 8. O-O {[%clk 0:02:49]}  O-O {[%clk 0:02:42]} 9. b3 {[%clk 0:02:44]}  Nbd7 {[%clk 0:02:36]} 10. Bb2 {[%clk 0:02:43]}  Rc8 {[%clk 0:02:33]} 11. Rac1 {[%clk 0:02:21]}  Re8 {[%clk 0:02:14]} 12. Qb1 {[%clk 0:02:15]}  Bd6 {[%clk 0:01:42]} 13. Rfe1 {[%clk 0:02:09]}  c5 {[%clk 0:01:31]} 14. e3 {[%clk 0:01:54]}  cxd4 {[%clk 0:01:22]} 15. Nxd4 {[%clk 0:01:41]}  Nc5 {[%clk 0:01:17]} 16. Red1 {[%clk 0:00:28]}  Bf8 {[%clk 0:01:05]} 17. cxd5 {[%clk 0:00:28]}  Bd3 {[%clk 0:00:57]} 18. Qa1 {[%clk 0:00:28]}  Nxd5 {[%clk 0:00:54]} 19. Nc4 {[%clk 0:00:28]}  Bg6 {[%clk 0:00:52]} 20. Ne5 {[%clk 0:00:21]}  Qd6 {[%clk 0:00:45]} 21. Nxg6 {[%clk 0:00:18]}  hxg6 {[%clk 0:00:45]} 22. Rc4 {[%clk 0:00:12]}  Qb8 {[%clk 0:00:37]} 23. Nb5 {[%clk 0:00:11]}  Red8 {[%clk 0:00:35]} 24. Be5 {[%clk 0:00:10]}  Qb7 {[%clk 0:00:33]} 25. Nc3 {[%clk 0:00:10]}  b5 {[%clk 0:00:31]} 26. Nxd5 {[%clk 0:00:10]}  exd5 {[%clk 0:00:30]} 27. Rcd4 {[%clk 0:00:08]}  Ne4 {[%clk 0:00:29]} 28. Bxe4 {[%clk 0:00:05]}  Qe7 {[%clk 0:00:30]} 29. Rxd5 {[%clk 0:00:04]}  Rxd5 {[%clk 0:00:22]} 30. Bxd5 {[%clk 0:00:05]}  Rd8 {[%clk 0:00:21]} 31. Bb2 {[%clk 0:00:04]}  Qc5 {[%clk 0:00:15]} 32. Bxf7+ {[%clk 0:00:03]}  Kxf7 {[%clk 0:00:09]} 33. Rxd8 {[%clk 0:00:04]}  Kg8 {[%clk 0:00:10]} 34. Rxf8+ {[%clk 0:00:04]}  Qxf8 {[%clk 0:00:10]} 35. Bxg7 {[%clk 0:00:05]}  Qxg7 {[%clk 0:00:11]} 36. Qxg7+ {[%clk 0:00:06]}  Kxg7 {[%clk 0:00:11]} 37. Kg2 {[%clk 0:00:06]}  Kf6 {[%clk 0:00:12]} 38. Kf3 {[%clk 0:00:07]}  Ke5 {[%clk 0:00:13]} 39. h4 {[%clk 0:00:08]}  b4 {[%clk 0:00:14]} 40. g4 {[%clk 0:00:08]}  Ke6 {[%clk 0:00:14]} 41. h5 {[%clk 0:00:09]}  g5 {[%clk 0:00:14]} 42. h6 {[%clk 0:00:10]}  Kf6 {[%clk 0:00:15]} 43. Ke4 {[%clk 0:00:11]}  Kg6 {[%clk 0:00:15]} 44. f4 {[%clk 0:00:11]}  Kxh6 {[%clk 0:00:16]} 45. Ke5 {[%clk 0:00:12]}  Kg6 {[%clk 0:00:17]} 46. f5+ {[%clk 0:00:11]}  Kf7 {[%clk 0:00:18]} 47. e4 {[%clk 0:00:12]}  Ke7 {[%clk 0:00:19]} 48. Kd5 {[%clk 0:00:13]}  Kd7 {[%clk 0:00:19]} 49. e5 {[%clk 0:00:14]}  Kc7 {[%clk 0:00:20]} 50. f6 {[%clk 0:00:15]}  Kd8 {[%clk 0:00:20]} 51. e6 {[%clk 0:00:16]}  Ke8 {[%clk 0:00:21]} 52. Kd6 {[%clk 0:00:16]}  Kf8 {[%clk 0:00:21]} 53. f7 {[%clk 0:00:17]}  a5 {[%clk 0:00:20]} 54. Kd7 {[%clk 0:00:18]}  Kg7 {[%clk 0:00:20]} 55. e7 {[%clk 0:00:19]}  Kf6 {[%clk 0:00:21]} 56. e8=Q {[%clk 0:00:20]}  a4 {[%clk 0:00:21]} 57. f8=Q# {[%clk 0:00:20]} 1-0


[Site "https://www.chess.com"]

[Event "Titled Tuesday Blitz February 07 Early 2023"]
[White "Rottenwohrer Suarez, Juan"]
[Black "Fiorito, Francisco"]
[WhiteFideId "32068182"]
[BlackFideId "180165"]
[WhiteElo "2265"]
[BlackElo "2305"]
[Result "1/2-1/2"]
[Round "10"]
[TimeControl "180+2"]
[Date "2023.02.07"]
[WhiteClock "0:00:45"]
[BlackClock "0:02:26"]

1. d4 {[%clk 0:03:00]}  Nf6 {[%clk 0:02:56]} 2. c4 {[%clk 0:03:01]}  g6 {[%clk 0:02:56]} 3. Nf3 {[%clk 0:03:02]}  Bg7 {[%clk 0:02:56]} 4. g3 {[%clk 0:03:02]}  O-O {[%clk 0:02:56]} 5. Bg2 {[%clk 0:03:03]}  c6 {[%clk 0:02:57]} 6. O-O {[%clk 0:03:03]}  d5 {[%clk 0:02:58]} 7. cxd5 {[%clk 0:03:04]}  cxd5 {[%clk 0:02:58]} 8. Nc3 {[%clk 0:03:05]}  Nc6 {[%clk 0:02:57]} 9. Ne5 {[%clk 0:03:05]}  Bf5 {[%clk 0:02:57]} 10. Bf4 {[%clk 0:03:04]}  Rc8 {[%clk 0:02:54]} 11. Rc1 {[%clk 0:03:04]}  Ne4 {[%clk 0:02:50]} 12. Nxe4 {[%clk 0:03:01]}  dxe4 {[%clk 0:02:50]} 13. Nxc6 {[%clk 0:03:01]}  bxc6 {[%clk 0:02:48]} 14. Be3 {[%clk 0:02:58]}  Qd5 {[%clk 0:02:45]} 15. b3 {[%clk 0:02:54]}  Rfd8 {[%clk 0:02:45]} 16. Qc2 {[%clk 0:02:39]}  Bxd4 {[%clk 0:02:42]} 17. Rfd1 {[%clk 0:02:39]}  c5 {[%clk 0:02:40]} 18. Qc4 {[%clk 0:01:51]}  Qxc4 {[%clk 0:02:39]} 19. Rxc4 {[%clk 0:01:51]}  Bxe3 {[%clk 0:02:39]} 20. Rxd8+ {[%clk 0:01:51]}  Rxd8 {[%clk 0:02:40]} 21. fxe3 {[%clk 0:01:51]}  Rd2 {[%clk 0:02:40]} 22. Bxe4 {[%clk 0:01:11]}  Bxe4 {[%clk 0:02:39]} 23. Rxe4 {[%clk 0:01:12]}  Rxe2 {[%clk 0:02:39]} 24. Rxe7 {[%clk 0:01:04]}  Rxa2 {[%clk 0:02:39]} 25. Rc7 {[%clk 0:01:05]}  Rb2 {[%clk 0:02:35]} 26. Rxa7 {[%clk 0:01:00]}  Rxb3 {[%clk 0:02:35]} 27. Rc7 {[%clk 0:01:00]}  Rxe3 {[%clk 0:02:33]} 28. Rxc5 {[%clk 0:01:00]}  Re2 {[%clk 0:02:34]} 29. Rc7 {[%clk 0:00:55]}  Ra2 {[%clk 0:02:34]} 30. Rb7 {[%clk 0:00:56]}  h5 {[%clk 0:02:33]} 31. Rc7 {[%clk 0:00:56]}  Kg7 {[%clk 0:02:33]} 32. Rb7 {[%clk 0:00:56]}  g5 {[%clk 0:02:33]} 33. h4 {[%clk 0:00:49]}  g4 {[%clk 0:02:32]} 34. Rb5 {[%clk 0:00:46]}  Kg6 {[%clk 0:02:32]} 35. Rg5+ {[%clk 0:00:44]}  Kh6 {[%clk 0:02:33]} 36. Rf5 {[%clk 0:00:45]}  Ra7 {[%clk 0:02:33]} 37. Kg2 {[%clk 0:00:44]}  Kg6 {[%clk 0:02:30]} 38. Rg5+ {[%clk 0:00:45]}  Kh6 {[%clk 0:02:30]} 39. Rf5 {[%clk 0:00:46]}  Ra2+ {[%clk 0:02:29]} 40. Kg1 {[%clk 0:00:45]}  Ra7 {[%clk 0:02:26]} 41. Kg2 {[%clk 0:00:45]} 1/2-1/2


[Site "https://www.chess.com"]

[Event "Titled Tuesday Blitz February 07 Early 2023"]
[White "Iljin, Timofey"]
[Black "Skurikhin, Dmitrij"]
[WhiteFideId "14110180"]
[BlackFideId "4161297"]
[WhiteElo "2329"]
[BlackElo "2297"]
[Result "1-0"]
[Round "10"]
[TimeControl "180+2"]
[Date "2023.02.07"]
[WhiteClock "0:00:08"]
[BlackClock "0:00:02"]

1. d4 {[%clk 0:02:55]}  Nf6 {[%clk 0:02:59]} 2. c4 {[%clk 0:02:55]}  g6 {[%clk 0:02:58]} 3. Nc3 {[%clk 0:02:56]}  d5 {[%clk 0:02:58]} 4. cxd5 {[%clk 0:02:57]}  Nxd5 {[%clk 0:02:58]} 5. e4 {[%clk 0:02:58]}  Nxc3 {[%clk 0:02:58]} 6. bxc3 {[%clk 0:02:59]}  c5 {[%clk 0:02:57]} 7. Nf3 {[%clk 0:02:59]}  Bg7 {[%clk 0:02:57]} 8. Be2 {[%clk 0:03:00]}  O-O {[%clk 0:02:54]} 9. O-O {[%clk 0:03:00]}  b6 {[%clk 0:02:51]} 10. Rb1 {[%clk 0:02:58]}  cxd4 {[%clk 0:02:44]} 11. cxd4 {[%clk 0:02:58]}  Bb7 {[%clk 0:02:40]} 12. d5 {[%clk 0:02:57]}  Nd7 {[%clk 0:02:36]} 13. Bg5 {[%clk 0:02:42]}  Nc5 {[%clk 0:02:33]} 14. Bd3 {[%clk 0:02:21]}  h6 {[%clk 0:02:32]} 15. Bh4 {[%clk 0:02:19]}  Re8 {[%clk 0:02:24]} 16. Re1 {[%clk 0:02:17]}  Nxd3 {[%clk 0:02:00]} 17. Qxd3 {[%clk 0:02:18]}  Rc8 {[%clk 0:02:00]} 18. Rbd1 {[%clk 0:02:12]}  Rc3 {[%clk 0:01:57]} 19. Qd2 {[%clk 0:02:12]}  Qc8 {[%clk 0:01:56]} 20. e5 {[%clk 0:02:08]}  Rc2 {[%clk 0:01:51]} 21. Qb4 {[%clk 0:01:51]}  Rc4 {[%clk 0:01:44]} 22. Qa3 {[%clk 0:01:51]}  g5 {[%clk 0:01:39]} 23. Bg3 {[%clk 0:01:51]}  g4 {[%clk 0:01:37]} 24. Nd2 {[%clk 0:01:50]}  Rc3 {[%clk 0:01:24]} 25. Nb3 {[%clk 0:01:50]}  a5 {[%clk 0:01:20]} 26. Qa4 {[%clk 0:01:35]}  Rc4 {[%clk 0:01:12]} 27. Qb5 {[%clk 0:01:35]}  Rb4 {[%clk 0:01:12]} 28. Qd3 {[%clk 0:01:21]}  Rd8 {[%clk 0:01:11]} 29. d6 {[%clk 0:01:19]}  exd6 {[%clk 0:01:10]} 30. exd6 {[%clk 0:01:20]}  Qc6 {[%clk 0:01:10]} 31. Qf1 {[%clk 0:01:12]}  a4 {[%clk 0:01:03]} 32. Rc1 {[%clk 0:01:12]}  Qd5 {[%clk 0:00:51]} 33. Rcd1 {[%clk 0:01:06]}  Qg5 {[%clk 0:00:34]} 34. Nd2 {[%clk 0:01:01]}  h5 {[%clk 0:00:33]} 35. Nc4 {[%clk 0:00:21]}  Ba6 {[%clk 0:00:29]} 36. Rc1 {[%clk 0:00:19]}  h4 {[%clk 0:00:23]} 37. f4 {[%clk 0:00:14]}  gxf3 {[%clk 0:00:19]} 38. d7 {[%clk 0:00:11]}  Bd4+ {[%clk 0:00:13]} 39. Kh1 {[%clk 0:00:08]}  hxg3 {[%clk 0:00:09]} 40. Re8+ {[%clk 0:00:09]}  Kg7 {[%clk 0:00:09]} 41. Qxf3 {[%clk 0:00:08]}  Rxd7 {[%clk 0:00:02]} 42. Qa8 {[%clk 0:00:08]} 1-0


[Site "https://www.chess.com"]

[Event "Titled Tuesday Blitz February 07 Early 2023"]
[White "Levitan, Caleb Levi"]
[Black "Ramirez Allo, Eduardo"]
[WhiteFideId "14332620"]
[BlackFideId "2224178"]
[WhiteElo "2129"]
[BlackElo "2274"]
[Result "0-1"]
[Round "10"]
[TimeControl "180+2"]
[Date "2023.02.07"]
[WhiteClock "0:00:02"]
[BlackClock "0:00:15"]

1. d4 {[%clk 0:02:59]}  Nf6 {[%clk 0:02:57]} 2. Bf4 {[%clk 0:02:59]}  c5 {[%clk 0:02:54]} 3. e3 {[%clk 0:02:55]}  g6 {[%clk 0:02:53]} 4. Nc3 {[%clk 0:02:37]}  Bg7 {[%clk 0:02:51]} 5. d5 {[%clk 0:02:35]}  d6 {[%clk 0:02:51]} 6. e4 {[%clk 0:02:35]}  O-O {[%clk 0:02:51]} 7. Bc4 {[%clk 0:02:33]}  a6 {[%clk 0:02:50]} 8. a4 {[%clk 0:02:33]}  Ne8 {[%clk 0:02:46]} 9. Nf3 {[%clk 0:02:29]}  Bg4 {[%clk 0:02:46]} 10. h3 {[%clk 0:02:23]}  Bxf3 {[%clk 0:02:47]} 11. Qxf3 {[%clk 0:02:23]}  Nd7 {[%clk 0:02:48]} 12. O-O {[%clk 0:02:20]}  Nc7 {[%clk 0:02:45]} 13. Qe2 {[%clk 0:01:50]}  Rb8 {[%clk 0:02:28]} 14. a5 {[%clk 0:01:46]}  b5 {[%clk 0:02:26]} 15. axb6 {[%clk 0:01:44]}  Rxb6 {[%clk 0:02:27]} 16. Ra2 {[%clk 0:01:26]}  Qb8 {[%clk 0:02:20]} 17. Na4 {[%clk 0:01:18]}  Rb7 {[%clk 0:02:11]} 18. c3 {[%clk 0:01:05]}  Nb6 {[%clk 0:02:08]} 19. Nxb6 {[%clk 0:01:03]}  Rxb6 {[%clk 0:02:09]} 20. Rfa1 {[%clk 0:01:01]}  Qb7 {[%clk 0:02:03]} 21. Bg5 {[%clk 0:00:47]}  Re8 {[%clk 0:01:50]} 22. f4 {[%clk 0:00:44]}  e6 {[%clk 0:01:43]} 23. dxe6 {[%clk 0:00:35]}  Nxe6 {[%clk 0:01:44]} 24. Bxa6 {[%clk 0:00:22]}  Qc7 {[%clk 0:01:44]} 25. Bb5 {[%clk 0:00:20]}  Reb8 {[%clk 0:01:41]} 26. Bc4 {[%clk 0:00:20]}  Nxg5 {[%clk 0:01:40]} 27. fxg5 {[%clk 0:00:20]}  Qd8 {[%clk 0:01:25]} 28. Qd2 {[%clk 0:00:15]}  Be5 {[%clk 0:01:19]} 29. Rf1 {[%clk 0:00:15]}  R6b7 {[%clk 0:01:15]} 30. h4 {[%clk 0:00:14]}  Qd7 {[%clk 0:01:12]} 31. Bd5 {[%clk 0:00:12]}  Qg4 {[%clk 0:01:07]} 32. Bxb7 {[%clk 0:00:10]}  Rxb7 {[%clk 0:01:08]} 33. Ra8+ {[%clk 0:00:09]}  Kg7 {[%clk 0:01:08]} 34. Qf2 {[%clk 0:00:09]}  Qxe4 {[%clk 0:01:04]} 35. h5 {[%clk 0:00:08]}  gxh5 {[%clk 0:01:03]} 36. Re8 {[%clk 0:00:06]}  Qg6 {[%clk 0:00:41]} 37. Qh4 {[%clk 0:00:04]}  Rxb2 {[%clk 0:00:30]} 38. Rf6 {[%clk 0:00:04]}  Bxf6 {[%clk 0:00:18]} 39. gxf6+ {[%clk 0:00:04]}  Kh6 {[%clk 0:00:17]} 40. Qf4+ {[%clk 0:00:03]}  Qg5 {[%clk 0:00:18]} 41. Qxg5+ {[%clk 0:00:04]}  Kxg5 {[%clk 0:00:19]} 42. Rg8+ {[%clk 0:00:04]}  Kxf6 {[%clk 0:00:19]} 43. Rh8 {[%clk 0:00:04]}  Rc2 {[%clk 0:00:17]} 44. Rxh7 {[%clk 0:00:05]}  Rxc3 {[%clk 0:00:18]} 45. Rxh5 {[%clk 0:00:05]}  Ke6 {[%clk 0:00:18]} 46. Kf2 {[%clk 0:00:06]}  d5 {[%clk 0:00:16]} 47. Ke2 {[%clk 0:00:05]}  Rc2+ {[%clk 0:00:15]} 48. Kf3 {[%clk 0:00:05]}  f5 {[%clk 0:00:15]} 49. g4 {[%clk 0:00:04]}  Rc3+ {[%clk 0:00:13]} 50. Kf4 {[%clk 0:00:04]}  Rc4+ {[%clk 0:00:13]} 51. Kf3 {[%clk 0:00:04]}  fxg4+ {[%clk 0:00:14]} 52. Kg3 {[%clk 0:00:03]}  Re4 {[%clk 0:00:14]} 53. Rg5 {[%clk 0:00:02]}  c4 {[%clk 0:00:14]} 54. Rg8 {[%clk 0:00:02]}  Ke5 {[%clk 0:00:14]} 55. Rc8 {[%clk 0:00:02]}  Kd4 {[%clk 0:00:15]} 56. Kf2 {[%clk 0:00:02]}  Kd3 {[%clk 0:00:14]} 57. Rd8 {[%clk 0:00:02]}  d4 {[%clk 0:00:15]} 58. Rc8 {[%clk 0:00:02]}  c3 {[%clk 0:00:15]} 59. Rc6 {[%clk 0:00:02]}  Re8 {[%clk 0:00:15]} 60. Kg3 {[%clk 0:00:02]}  Kd2 {[%clk 0:00:15]} 61. Kxg4 {[%clk 0:00:02]}  c2 {[%clk 0:00:16]} 62. Kf4 {[%clk 0:00:02]}  c1=Q {[%clk 0:00:15]} 0-1


[Site "https://www.chess.com"]

[Event "Titled Tuesday Blitz February 07 Early 2023"]
[White "Wilson, Elvin"]
[Black "Valle Maytin, Luis Enrique"]
[WhiteFideId "2014874"]
[BlackFideId "3503666"]
[WhiteElo "2183"]
[BlackElo "2241"]
[Result "1-0"]
[Round "10"]
[TimeControl "180+2"]
[Date "2023.02.07"]
[WhiteClock "0:01:03"]
[BlackClock "0:00:03"]

1. c4 {[%clk 0:03:00]}  c5 {[%clk 0:02:59]} 2. g3 {[%clk 0:03:00]}  g6 {[%clk 0:02:59]} 3. Bg2 {[%clk 0:03:00]}  Bg7 {[%clk 0:02:59]} 4. Nc3 {[%clk 0:03:00]}  Nc6 {[%clk 0:02:59]} 5. e4 {[%clk 0:03:01]}  d6 {[%clk 0:02:58]} 6. Nge2 {[%clk 0:03:01]}  e6 {[%clk 0:02:58]} 7. O-O {[%clk 0:03:00]}  Nge7 {[%clk 0:02:58]} 8. d3 {[%clk 0:02:59]}  O-O {[%clk 0:02:58]} 9. Be3 {[%clk 0:03:00]}  b6 {[%clk 0:02:58]} 10. d4 {[%clk 0:02:57]}  cxd4 {[%clk 0:02:54]} 11. Nxd4 {[%clk 0:02:57]}  Nxd4 {[%clk 0:02:36]} 12. Bxd4 {[%clk 0:02:55]}  e5 {[%clk 0:02:30]} 13. Be3 {[%clk 0:02:52]}  Ba6 {[%clk 0:02:24]} 14. b3 {[%clk 0:02:25]}  Rc8 {[%clk 0:02:22]} 15. Qd2 {[%clk 0:02:24]}  Qc7 {[%clk 0:02:19]} 16. Rfd1 {[%clk 0:02:23]}  Rfd8 {[%clk 0:02:19]} 17. Rac1 {[%clk 0:02:23]}  Qb8 {[%clk 0:02:15]} 18. a4 {[%clk 0:02:17]}  Nc6 {[%clk 0:01:44]} 19. Nd5 {[%clk 0:01:58]}  Bb7 {[%clk 0:01:29]} 20. Bh3 {[%clk 0:01:53]}  Rc7 {[%clk 0:01:13]} 21. Bg5 {[%clk 0:01:35]}  Nd4 {[%clk 0:01:05]} 22. Qe3 {[%clk 0:01:30]}  Bxd5 {[%clk 0:00:47]} 23. Bxd8 {[%clk 0:01:20]}  Qxd8 {[%clk 0:00:21]} 24. cxd5 {[%clk 0:01:20]}  Rc5 {[%clk 0:00:19]} 25. b4 {[%clk 0:01:15]}  Rxc1 {[%clk 0:00:15]} 26. Rxc1 {[%clk 0:01:15]}  h5 {[%clk 0:00:14]} 27. Rc8 {[%clk 0:01:15]}  Qxc8 {[%clk 0:00:13]} 28. Bxc8 {[%clk 0:01:15]}  Bf6 {[%clk 0:00:13]} 29. Kg2 {[%clk 0:01:12]}  Kh7 {[%clk 0:00:13]} 30. Qc3 {[%clk 0:01:09]}  Bg7 {[%clk 0:00:13]} 31. Qc7 {[%clk 0:01:09]}  a5 {[%clk 0:00:09]} 32. bxa5 {[%clk 0:01:08]}  bxa5 {[%clk 0:00:09]} 33. Qxf7 {[%clk 0:01:06]}  Kh6 {[%clk 0:00:09]} 34. Bd7 {[%clk 0:01:05]}  Nb3 {[%clk 0:00:08]} 35. Be8 {[%clk 0:01:05]}  Kh7 {[%clk 0:00:06]} 36. Qxg6+ {[%clk 0:01:05]}  Kh8 {[%clk 0:00:07]} 37. Bf7 {[%clk 0:01:03]}  h4 {[%clk 0:00:03]} 38. Qh5+ {[%clk 0:01:03]} 1-0


[Site "https://www.chess.com"]

[Event "Titled Tuesday Blitz February 07 Early 2023"]
[White "Herman, Daniel"]
[Black "Adithya A Chullikkad"]
[WhiteFideId "30935008"]
[BlackFideId "45078734"]
[WhiteElo "1956"]
[BlackElo "2259"]
[Result "1/2-1/2"]
[Round "10"]
[TimeControl "180+2"]
[Date "2023.02.07"]
[WhiteClock "0:00:09"]
[BlackClock "0:00:04"]

1. c4 {[%clk 0:03:00]}  c5 {[%clk 0:02:52]} 2. Nc3 {[%clk 0:03:00]}  e6 {[%clk 0:02:53]} 3. Nf3 {[%clk 0:02:59]}  d5 {[%clk 0:02:53]} 4. cxd5 {[%clk 0:02:58]}  exd5 {[%clk 0:02:54]} 5. d4 {[%clk 0:02:59]}  Nc6 {[%clk 0:02:50]} 6. g3 {[%clk 0:02:59]}  Nf6 {[%clk 0:02:50]} 7. Bg2 {[%clk 0:02:58]}  Be7 {[%clk 0:02:47]} 8. O-O {[%clk 0:02:57]}  O-O {[%clk 0:02:46]} 9. dxc5 {[%clk 0:02:52]}  Bxc5 {[%clk 0:02:46]} 10. Bg5 {[%clk 0:02:51]}  Be7 {[%clk 0:02:43]} 11. Rc1 {[%clk 0:02:42]}  h6 {[%clk 0:02:41]} 12. Bf4 {[%clk 0:02:34]}  Be6 {[%clk 0:02:36]} 13. Nb5 {[%clk 0:02:28]}  Rc8 {[%clk 0:02:15]} 14. Nfd4 {[%clk 0:02:23]}  a6 {[%clk 0:02:11]} 15. Nxc6 {[%clk 0:02:13]}  bxc6 {[%clk 0:02:08]} 16. Na7 {[%clk 0:02:13]}  Bd6 {[%clk 0:01:58]} 17. Bxd6 {[%clk 0:02:09]}  Qxd6 {[%clk 0:01:59]} 18. Nxc8 {[%clk 0:02:09]}  Rxc8 {[%clk 0:01:59]} 19. Qa4 {[%clk 0:02:06]}  Qe5 {[%clk 0:01:55]} 20. Rxc6 {[%clk 0:01:57]}  Rxc6 {[%clk 0:01:53]} 21. Qxc6 {[%clk 0:01:58]}  Qxe2 {[%clk 0:01:54]} 22. Qc3 {[%clk 0:01:47]}  Qb5 {[%clk 0:01:27]} 23. Qd4 {[%clk 0:01:41]}  Qa5 {[%clk 0:01:20]} 24. a3 {[%clk 0:01:40]}  Qb5 {[%clk 0:01:21]} 25. Rc1 {[%clk 0:01:38]}  Qb8 {[%clk 0:01:17]} 26. b4 {[%clk 0:01:36]}  Qb7 {[%clk 0:01:16]} 27. Rc5 {[%clk 0:01:31]}  Qb8 {[%clk 0:01:11]} 28. Rc6 {[%clk 0:01:27]}  Qb7 {[%clk 0:01:09]} 29. Qb6 {[%clk 0:01:24]}  Qa8 {[%clk 0:01:05]} 30. Qxa6 {[%clk 0:01:23]}  Qb8 {[%clk 0:01:00]} 31. Qb6 {[%clk 0:01:17]}  Qe5 {[%clk 0:01:00]} 32. Rc1 {[%clk 0:00:52]}  Qb2 {[%clk 0:00:54]} 33. Qb8+ {[%clk 0:00:50]}  Kh7 {[%clk 0:00:53]} 34. Qf4 {[%clk 0:00:50]}  g5 {[%clk 0:00:43]} 35. Qe3 {[%clk 0:00:44]}  Ng4 {[%clk 0:00:42]} 36. Qd3+ {[%clk 0:00:38]}  Kg8 {[%clk 0:00:40]} 37. Rf1 {[%clk 0:00:37]}  Ne5 {[%clk 0:00:38]} 38. Qe3 {[%clk 0:00:32]}  Nc4 {[%clk 0:00:38]} 39. Qc5 {[%clk 0:00:30]}  Qxa3 {[%clk 0:00:22]} 40. Bxd5 {[%clk 0:00:26]}  Bxd5 {[%clk 0:00:22]} 41. Qxd5 {[%clk 0:00:27]}  Qxb4 {[%clk 0:00:23]} 42. Rc1 {[%clk 0:00:19]}  Nb6 {[%clk 0:00:19]} 43. Qf5 {[%clk 0:00:17]}  Qd6 {[%clk 0:00:18]} 44. Re1 {[%clk 0:00:16]}  Nd7 {[%clk 0:00:16]} 45. Re8+ {[%clk 0:00:15]}  Kg7 {[%clk 0:00:16]} 46. Rd8 {[%clk 0:00:15]}  Qd1+ {[%clk 0:00:14]} 47. Kg2 {[%clk 0:00:15]}  Qa4 {[%clk 0:00:12]} 48. Rxd7 {[%clk 0:00:14]}  Qc6+ {[%clk 0:00:12]} 49. Kf1 {[%clk 0:00:14]}  Qc4+ {[%clk 0:00:11]} 50. Kg2 {[%clk 0:00:14]}  Qc6+ {[%clk 0:00:12]} 51. Kh3 {[%clk 0:00:14]}  Qc4 {[%clk 0:00:10]} 52. Rd6 {[%clk 0:00:11]}  Qf1+ {[%clk 0:00:07]} 53. Kg4 {[%clk 0:00:09]}  Qc4+ {[%clk 0:00:06]} 54. f4 {[%clk 0:00:09]}  Qe2+ {[%clk 0:00:05]} 55. Kh3 {[%clk 0:00:08]}  Qf1+ {[%clk 0:00:05]} 56. Kg4 {[%clk 0:00:08]}  Qe2+ {[%clk 0:00:04]} 57. Kh3 {[%clk 0:00:08]}  Qf1+ {[%clk 0:00:04]} 58. Kg4 {[%clk 0:00:09]}  Qe2+ {[%clk 0:00:04]} 1/2-1/2


[Site "https://www.chess.com"]

[Event "Titled Tuesday Blitz February 07 Early 2023"]
[White "Hoffmann, Asa"]
[Black "Ezat, Mohamed"]
[WhiteFideId "2001470"]
[BlackFideId "10600906"]
[WhiteElo "2185"]
[BlackElo "2402"]
[Result "1/2-1/2"]
[Round "10"]
[TimeControl "180+2"]
[Date "2023.02.07"]
[WhiteClock "0:00:15"]
[BlackClock "0:00:17"]

1. d4 {[%clk 0:02:54]}  Nf6 {[%clk 0:02:04]} 2. Bg5 {[%clk 0:02:52]}  Ne4 {[%clk 0:02:03]} 3. Bf4 {[%clk 0:02:52]}  c5 {[%clk 0:02:03]} 4. f3 {[%clk 0:02:51]}  Nf6 {[%clk 0:02:02]} 5. dxc5 {[%clk 0:02:51]}  e6 {[%clk 0:02:02]} 6. Bd6 {[%clk 0:02:50]}  Bxd6 {[%clk 0:01:57]} 7. Qxd6 {[%clk 0:02:46]}  Na6 {[%clk 0:01:57]} 8. Nc3 {[%clk 0:02:43]}  Qa5 {[%clk 0:01:54]} 9. e4 {[%clk 0:02:35]}  Qxc5 {[%clk 0:01:49]} 10. O-O-O {[%clk 0:02:30]}  Qxd6 {[%clk 0:01:48]} 11. Rxd6 {[%clk 0:02:29]}  Ke7 {[%clk 0:01:49]} 12. e5 {[%clk 0:02:27]}  Ne8 {[%clk 0:01:48]} 13. Bxa6 {[%clk 0:02:12]}  bxa6 {[%clk 0:01:46]} 14. Rd4 {[%clk 0:02:11]}  d5 {[%clk 0:01:45]} 15. exd6+ {[%clk 0:02:10]}  Nxd6 {[%clk 0:01:46]} 16. Nge2 {[%clk 0:02:09]}  Bb7 {[%clk 0:01:43]} 17. Rhd1 {[%clk 0:02:07]}  Rhd8 {[%clk 0:01:42]} 18. Rb4 {[%clk 0:01:59]}  Rab8 {[%clk 0:01:39]} 19. Nd4 {[%clk 0:01:58]}  Ba8 {[%clk 0:01:33]} 20. a3 {[%clk 0:01:52]}  Rxb4 {[%clk 0:01:30]} 21. axb4 {[%clk 0:01:51]}  Rb8 {[%clk 0:01:31]} 22. Na2 {[%clk 0:01:43]}  e5 {[%clk 0:01:21]} 23. Ne2 {[%clk 0:01:39]}  Nf5 {[%clk 0:01:16]} 24. Rd3 {[%clk 0:01:34]}  e4 {[%clk 0:01:11]} 25. Ra3 {[%clk 0:01:29]}  exf3 {[%clk 0:01:10]} 26. gxf3 {[%clk 0:01:29]}  Rb6 {[%clk 0:01:10]} 27. Ra5 {[%clk 0:01:20]}  g6 {[%clk 0:01:01]} 28. f4 {[%clk 0:01:17]}  Bb7 {[%clk 0:00:47]} 29. Nac3 {[%clk 0:01:15]}  Rxb4 {[%clk 0:00:45]} 30. b3 {[%clk 0:01:03]}  Rb6 {[%clk 0:00:43]} 31. Kb2 {[%clk 0:00:57]}  Nd6 {[%clk 0:00:37]} 32. Kc1 {[%clk 0:00:54]}  Nb5 {[%clk 0:00:36]} 33. Na4 {[%clk 0:00:50]}  Rc6 {[%clk 0:00:32]} 34. c4 {[%clk 0:00:49]}  Nd6 {[%clk 0:00:31]} 35. Nc5 {[%clk 0:00:48]}  Bc8 {[%clk 0:00:29]} 36. Nd4 {[%clk 0:00:47]}  Rb6 {[%clk 0:00:27]} 37. Kc2 {[%clk 0:00:46]}  Nb7 {[%clk 0:00:25]} 38. Nxb7 {[%clk 0:00:42]}  Bxb7 {[%clk 0:00:26]} 39. Rc5 {[%clk 0:00:41]}  Rd6 {[%clk 0:00:25]} 40. Kc3 {[%clk 0:00:41]}  h6 {[%clk 0:00:24]} 41. b4 {[%clk 0:00:40]}  Rd7 {[%clk 0:00:21]} 42. f5 {[%clk 0:00:37]}  Kf6 {[%clk 0:00:20]} 43. fxg6 {[%clk 0:00:37]}  fxg6 {[%clk 0:00:21]} 44. Nb3 {[%clk 0:00:33]}  g5 {[%clk 0:00:20]} 45. h3 {[%clk 0:00:32]}  Bg2 {[%clk 0:00:20]} 46. Ra5 {[%clk 0:00:30]}  Bxh3 {[%clk 0:00:19]} 47. Rxa6+ {[%clk 0:00:30]}  Be6 {[%clk 0:00:19]} 48. Nc5 {[%clk 0:00:29]}  Re7 {[%clk 0:00:19]} 49. b5 {[%clk 0:00:28]}  g4 {[%clk 0:00:19]} 50. Nxe6 {[%clk 0:00:27]}  Rxe6 {[%clk 0:00:18]} 51. Rxa7 {[%clk 0:00:27]}  g3 {[%clk 0:00:19]} 52. Ra2 {[%clk 0:00:25]}  h5 {[%clk 0:00:18]} 53. c5 {[%clk 0:00:25]}  h4 {[%clk 0:00:17]} 54. b6 {[%clk 0:00:26]}  h3 {[%clk 0:00:17]} 55. b7 {[%clk 0:00:25]}  Re8 {[%clk 0:00:18]} 56. c6 {[%clk 0:00:23]}  h2 {[%clk 0:00:18]} 57. c7 {[%clk 0:00:23]}  h1=Q {[%clk 0:00:18]} 58. c8=Q {[%clk 0:00:21]}  Rxc8+ {[%clk 0:00:18]} 59. bxc8=Q {[%clk 0:00:20]}  Qc1+ {[%clk 0:00:17]} 60. Rc2 {[%clk 0:00:20]}  Qe3+ {[%clk 0:00:18]} 61. Kb4 {[%clk 0:00:19]}  Qb6+ {[%clk 0:00:17]} 62. Kc4 {[%clk 0:00:18]}  Kg5 {[%clk 0:00:15]} 63. Qc5+ {[%clk 0:00:18]}  Qxc5+ {[%clk 0:00:14]} 64. Kxc5 {[%clk 0:00:17]}  Kf4 {[%clk 0:00:15]} 65. Kd4 {[%clk 0:00:17]}  Kf3 {[%clk 0:00:16]} 66. Rc7 {[%clk 0:00:16]}  g2 {[%clk 0:00:16]} 67. Rf7+ {[%clk 0:00:16]}  Ke2 {[%clk 0:00:16]} 68. Rg7 {[%clk 0:00:16]}  Kf2 {[%clk 0:00:17]} 69. Rxg2+ {[%clk 0:00:15]}  Kxg2 {[%clk 0:00:17]} 1/2-1/2


[Site "https://www.chess.com"]